Cogmind - Beta 13 @@@ ROGUE MODE // 2024.04.08 @ 17:09:40 Player: Dogenati Result: Destroyed by G-34 Mercenary with Small Laser Performance ------------- Evolutions (1) 500 Regions Visited (2) 400 Robots Destroyed (22) 110 Value Destroyed (435) 435 Prototype IDs (2) 40 Alien Tech Used (0) 0 Bonus (0) 0 TOTAL SCORE: 1485 Bonus ------- None Cogmind --------- Core Integrity 0/400 Matter 300/300 Energy 100/100 System Corruption 0% Temperature Cool (12) Movement Core (350) Ox6 Location -9/Materials Parts ------- > --- POWER (2) -------- (None) > --- PROPULSION (2) --- (None) > --- UTILITY (2) ------ Large Storage Unit > --- WEAPON (3) ------- (None) > --- INVENTORY (15) --- Light Ion Engine Aluminum Leg Aluminum Leg Medium Storage Unit Medium Storage Unit Light Armor Plating High-powered Tractor Beam High-powered Tractor Beam Datajack Peak State ------------ > --- POWER ------------ Light Ion Engine Light Ion Engine > --- PROPULSION ------- Wheel Wheel > --- UTILITY ---------- Large Storage Unit Small Matter Pod > --- WEAPON ----------- Beam Rifle Light Assault Rifle > --- INVENTORY -------- Light Ion Engine Aluminum Leg Aluminum Leg Medium Storage Unit Medium Storage Unit Light Armor Plating High-powered Tractor Beam High-powered Tractor Beam Datajack [Rating: 10] Favorites ----------- Power Light Ion Engine Engine Light Ion Engine Propulsion Aluminum Leg Leg Aluminum Leg Wheel Wheel Flight Unit Flight Unit Utility Small Matter Pod Device Seismic Detector Storage Small Matter Pod Protection Light Armor Plating Weapon Light Assault Rifle Energy Gun Small Laser Ballistic Gun Light Assault Rifle Launcher Grenade Launcher Special Weapon Mining Laser Build | -11 -10 -9 ------- Run | Yrd Mat Mat Slots Evolved 2 | . . 2 Power 1 | . . 1 Propulsion . | . . . Utility . | . . . Weapon 1 | . . 1 Parts Attached 22 | 2 17 3 Power 5 | . 4 1 Engine 5 | . 4 1 Core . | . . . Reactor . | . . . Propulsion 7 | . 6 1 Treads . | . . . Leg 2 | . 2 . Wheel 3 | . 2 1 Hover . | . . . Flight 2 | . 2 . Utility 4 | . 4 . Device 1 | . 1 . Storage 2 | . 2 . Processor . | . . . Hackware . | . . . Protection 1 | . 1 . Artifact . | . . . Weapon 6 | 2 3 1 Energy Gun 3 | 2 . 1 Energy Cannon . | . . . Ballistic Gun 1 | . 1 . Ballistic Cannon . | . . . Launcher 1 | . 1 . Special Weapon 1 | . 1 . Impact Weapon . | . . . Slashing Weapon . | . . . Piercing Weapon . | . . . Special Melee Weapon . | . . . Unidentified Prototypes . | . . . Parts Lost 13 | . 4 9 Power 3 | . 1 2 Propulsion 5 | . 2 3 Utility 2 | . 1 1 Weapon 3 | . . 3 Highest Loss Streak 7 | . 1 7 To Critical Strikes . | . . . Average Slot Usage (%) 79 | . 82 63 Engine 9 | . 8 15 Leg 16 | . 18 . Wheel 1 | . . 14 Flight 2 | . 2 . Device 1 | . 1 . Storage 22 | . 22 20 Protection 1 | . 1 . Energy Gun 7 | . 8 5 Ballistic Gun 9 | . 9 7 Launcher 6 | . 7 1 Naked Turns . | . . . Heaviest Build 31 | 2 30 31 Greatest Support 20 | 3 20 20 Greatest Overweight (x) 8 | . 2 8 Average Overweight (x) . | . . 1 Largest Inventory Capacity 15 | 5 15 15 Average Capacity 11 | 5 11 15 Most Carried 9 | 2 9 9 Average Carried 4 | . 4 8 Final Capacity 15 | 5 15 15 Final Carried 9 | . 8 9 Class Distribution -------------------- 93% | Mutant 6% | Scavenger-Mutant Dominant Class ---------------- Mutant | -10/Materials Scavenger-Mutant | -9/Materials Resources | -11 -10 -9 ----------- Run | Yrd Mat Mat Matter Collected 482 | 200 235 47 Remotely . | . . . Salvage Created 430 | 43 332 55 Parts 42 | . 37 5 Haulers Intercepted . | . . . Recyclers Shooed . | . . . Parts Field Recycled . | . . . Retrieved Matter . | . . . Parts Self-Destructed . | . . . Prevented . | . . . Kills | -11 -10 -9 ------- Run | Yrd Mat Mat Combat Hostiles Destroyed 12 | 1 10 1 Guns 8 | 1 7 . AOE 4 | . 3 1 Classes Destroyed 7 | 1 5 1 Worker 4 | . 3 1 Builder 3 | . 2 1 Tunneler 1 | . 1 . Watcher 2 | . 2 . Swarmer 3 | . 3 . Grunt 8 | 1 7 . Sentry 1 | . . 1 Best Kill Streak 5 | 1 5 3 Combat Bots Only 3 | 1 3 1 Max Kills in Single Turn 2 | 1 2 2 Gunslinging . | . . . Exploded 1 | . 1 1 Melee . | . . . Uniques/NPCs Destroyed . | . . . Combat | -11 -10 -9 -------- Run | Yrd Mat Mat Hostile Shots Fired 144 | 3 70 71 Missed 35 | . 17 18 Damage Taken 1475 | 33 712 730 Core 593 | 10 181 402 Absorbed by Shields . | . . . Regen/Repaired (Parts) 13 | . 13 . Core Remaining (%) 59 | 96 23 . Volleys Fired 68 | 3 48 17 Largest 2 | 2 2 2 Hottest 120 | 80 120 76 Shots Fired 123 | 6 93 24 Gun 107 | 6 81 20 Cannon . | . . . Launcher 13 | . 9 4 Special 3 | . 3 . Kinetic 30 | . 15 15 Thermal 80 | 6 69 5 Explosive 13 | . 9 4 Electromagnetic . | . . . Robot Hit Streak 7 | 3 7 5 Robot Miss Streak 4 | 2 4 2 Penetration Max . | . . . Secondary Targets 1 | . 1 . Max Gunslinging Chain 1 | . 1 . Shots Hit Robots 69 | 4 49 16 Core Hits 41 | 2 31 8 Critical Kills . | . . . Critical Parts Destroyed . | . . . Critical Strikes . | . . . Melee Attacks . | . . . Impact . | . . . Slashing . | . . . Piercing . | . . . Sneak Attacks . | . . . Combat Hostiles . | . . . Follow-up Attacks . | . . . Damage Inflicted 1285 | 45 969 271 Guns 641 | 45 474 122 Cannons . | . . . Explosions 577 | . 441 136 Melee . | . . . Ramming 19 | . 6 13 Kinetic 127 | . 65 62 Thermal 562 | 45 457 60 Explosive 577 | . 441 136 Electromagnetic . | . . . Impact . | . . . Slashing . | . . . Piercing . | . . . Highest Corruption . | . . . Average Corruption . | . . . Corruption Purged . | . . . Corruption Blocked . | . . . Overload Shots . | . . . Overflow Damage 29 | . . 29 Projectiles . | . . . Explosions 29 | . . 29 Melee . | . . . Knockbacks 1 | . 1 . Impact 1 | . 1 . Kinetic . | . . . Secondary . | . . . Self-Inflicted Damage 237 | . 132 105 Shots 9 | . 6 3 Rammed 5 | . . 5 Targets Rammed 7 | . 2 5 Kicked 2 | . 2 . Crushed . | . . . Highest Temperature 215 | 27 215 126 Average Temperature 50 | 16 50 61 Received Heat Transfer 645 | 18 300 327 Siege Activations . | . . . Robots Corrupted . | . . . Combat Hostiles . | . . . Parts Fried . | . . . Impact Corruptions . | . . . Robots Melted . | . . . Combat Hostiles . | . . . Parts Melted . | . . . Heat Transferred 1273 | 100 1025 148 Parts Sabotaged . | . . . Parts Stolen . | . . . Parts Stripped . | . . . Power Chain Reactions . | . . . Alert | -11 -10 -9 ------- Run | Yrd Mat Mat Peak Influence 222 | 20 222 52 Initial 13 | . 13 9 Average 63 | 2 69 34 Maximum Alert Level 1 | . 1 . Low Security (%) 91 | 100 90 100 Level 1 8 | . 9 . Level 2 . | . . . Level 3 . | . . . Level 4 . | . . . Level 5 . | . . . High Security . | . . . Max Security . | . . . Squads Dispatched 7 | . 4 3 Investigation 4 | . 3 1 Extermination . | . . . Reinforcement 3 | . 1 2 Assault . | . . . Garrison . | . . . Intercept . | . . . Searches Triggered . | . . . Construction Impeded 1 | . . 1 Haulers Reinforced . | . . . Active Scanning Responses . | . . . Cargo Convoy Interrupts . | . . . Stealth | -11 -10 -9 --------- Run | Yrd Mat Mat Distress Signals . | . . . Communications Jammed . | . . . Distress Signals . | . . . Times Spotted 23 | 1 15 7 Peak Tracking Total 5 | 1 4 5 Tactical Retreats 1 | . . 1 Traps | -11 -10 -9 ------- Run | Yrd Mat Mat Traps Triggered 2 | . 1 1 Indirectly . | . . . Trap Hack Attempts . | . . . Triggered . | . . . Disarmed . | . . . Reprogrammed . | . . . Reused . | . . . Traps Extracted . | . . . Installed . | . . . Triggered . | . . . Machines | -11 -10 -9 ---------- Run | Yrd Mat Mat Machines Disabled 3 | . 3 . Max in Single Turn 1 | . 1 . Machines Repaired . | . . . Machines Dismantled . | . . . Machines Sabotaged . | . . . Overloaded Fab Kills . | . . . Hacking | -11 -10 -9 --------- Run | Yrd Mat Mat Machines Accessed 7 | . 6 1 Terminals 4 | . 3 1 Fabricators . | . . . Repair Stations 1 | . 1 . Recycling Units 2 | . 2 . Scanalyzers . | . . . Garrison Access . | . . . Total Hacks 31 | . 26 5 Successful 24 | . 20 4 Failed 7 | . 6 1 Catastrophic 2 | . 1 1 Database Lockouts . | . . . Manual . | . . . Terminals 15 | . 10 5 Fabricators . | . . . Repair Stations 4 | . 4 . Recycling Units 12 | . 12 . Scanalyzers . | . . . Garrison Access . | . . . Terminal Hacks 11 | . 7 4 Record 7 | . 6 1 Prototype ID Bank 1 | . . 1 Alert Level 3 | . 1 2 Fabricator Hacks . | . . . Repair Station Hacks 3 | . 3 . Scan Component 2 | . 2 . Repair 1 | . 1 . Recycling Unit Hacks 10 | . 10 . Recycle Component 5 | . 5 . Process 1 | . 1 . Report Inventory 2 | . 2 . Retrieve Matter 1 | . 1 . Retrieve Components 1 | . 1 . Scanalyzer . | . . . Garrison Access Hacks . | . . . Unauthorized Hacks . | . . . Terminals . | . . . Fabricators . | . . . Repair Stations . | . . . Recycling Units . | . . . Scanalyzers . | . . . Garrison Access . | . . . Data Cores Recovered . | . . . Used . | . . . Hacking Detections 7 | . 6 1 Full Trace Events 6 | . 5 1 Feedback Events . | . . . Feedback Blocked . | . . . Robot Schematics Acquired . | . . . Robots Built . | . . . Authchips . | . . . Time . | . . . Total Robot Build Rating . | . . . Part Schematics Acquired . | . . . Parts Built . | . . . Authchips . | . . . Time . | . . . Total Part Build Rating . | . . . Parts Repaired 1 | . 1 . Time 26 | . 26 . Parts Recycled 5 | . 5 . Recycled Matter 181 | . 181 . Retrieved Matter 181 | . 181 . Retrieved Components . | . . . Parts Scanalyzed . | . . . Part Schematics Acquired . | . . . Parts Damaged . | . . . Bothacking | -11 -10 -9 ------------ Run | Yrd Mat Mat Used RIF Installer . | . . . Robots Hacked . | . . . Non-combat . | . . . Combat . | . . . Robot Hacks Applied . | . . . Relay Couplers Released . | . . . Fabnet Peak Effective % . | . . . Robots Rewired . | . . . Allies Hacked . | . . . Hacks Repelled . | . . . Allies | -11 -10 -9 -------- Run | Yrd Mat Mat Total Allies . | . . . Largest Group . | . . . Highest-Rated Group . | . . . Highest-Rated Ally . | . . . Total Orders . | . . . Ally Attacks . | . . . Total Damage . | . . . Kills . | . . . Allies Corrupted . | . . . Allies Melted . | . . . Intel | -11 -10 -9 ------- Run | Yrd Mat Mat Robot Analysis Total . | . . . Derelict Logs Recovered . | . . . Drone Launches . | . . . Drone Recoveries . | . . . Exploration | -11 -10 -9 ------------- Run | Yrd Mat Mat Turns Passed 1737 | 41 1469 227 Spaces Moved 1087 | 56 897 134 Core 154 | 56 85 13 Treads . | . . . Legs 588 | . 588 . Wheels 131 | . 10 121 Hover . | . . . Flight 214 | . 214 . Fastest Speed 37 | 50 37 95 Average Speed 132 | 50 139 124 Slowest Speed 450 | 50 260 450 Overloaded Moves . | . . . Propulsion Burnouts . | . . . Robots Hopped 3 | . 3 . Cave-ins Triggered . | . . . Exploration Rate (%) 29 | 7 71 9 Regions Visited 2 Branch Regions . Pre-discovered Areas . | . . . Known Exits Taken . | . . . Unknown Exits Taken 2 | 1 1 . Scrap Searched . | . . . Spaces Dug 10 | . 10 . Terrain Destroyed 85 | . 57 28 Melee . | . . . Projectile 1 | . 1 . AOE 84 | . 56 28 Terrain Rammed . | . . . Walls Destroyed . | . . . Machines Disabled . | . . . Actions | -11 -10 -9 --------- Run | Yrd Mat Mat Total 1243 | 62 1016 165 Wait 23 | . 21 2 Move 1079 | 55 890 134 Hop 3 | . 3 . Pick Up 34 | 2 28 4 Fast Attach . | . . . Attach 17 | 2 12 3 Detach 2 | . 2 . Swap 5 | . 5 . Drop 5 | . 5 . Fire 68 | 3 48 17 Melee . | . . . Ram 5 | . . 5 Kick 2 | . 2 . Crush . | . . . Escape Stasis . | . . . Rewire . | . . . Trap . | . . . Miscellaneous . | . . . Route ------- -11/Scrapyard -10/Materials (discovered 3 exits: *Mat x2 / [*Min]) -9/Materials History --------- Turn | Location | Event 2 | -11/Scrapyard | Met Revision 17 27 | -11/Scrapyard | Discovered new exit (range 8) 42 | -11/Scrapyard | Entered Materials 189 | -10/Materials | Discovered new exit (range 13) 242 | -10/Materials | Discovered new exit (range 9) 329 | -10/Materials | Build established: Mutant 356 | -10/Materials | Repaired Ion Engine? 707 | -10/Materials | Discovered new exit (range 8) 753 | -10/Materials | Core integrity fell below 50% 1511 | -10/Materials | Entered another Materials area 1511 | -9/Materials | Evolved 2 slots: Power x1, Weapon x1 1721 | -9/Materials | Core integrity fell below 50% 1730 | -9/Materials | Lost 7 parts (2p2n1u2w) 1734 | -9/Materials | Core integrity fell below 20% 1738 | -9/Materials | Destroyed by G-34 Mercenary with Small Laser Last Messages --------------- U-05 Engineer lays Concrete. Acquired Hpw. Tractor Beam. U-05 Engineer lays Concrete. Triggered Alarm Trap. An alarm sounds. ALERT: Alarm triggered, dispatching investigation squad. K-01 Serf collects debris. K-01 Serf cleans the Fusion Modulator. Lgt. Assault Rifle destroyed. K-01 Serf cleans the Fusion Modulator. Wheel destroyed. Slammed into K-01 Serf. Beam Rifle destroyed. Wheel destroyed. Lgt. Ion Engine destroyed. Sml. Matter Pod destroyed. Slammed into G-34 Mercenary. Destabilizing: Core damaged (-16). Slammed into G-34 Mercenary. Map ----- +----------------------------------------------------+ | ?????????????????????????????????????????????????? | | ?????????????????????????????????????????????????? | | ?????????????????????????????????????????????????? | | ?????????????????????????????????????????????????? | | ????????###+###?"????????????????????????????????? | | ????????# # ?????????????????????????????????? | | ???????## # ?????????????????????????????????? | | ???????? T +??????????????????????????????????? | | ????????# #??????????????????????????????????? | | ????????? ???????????????????????????????????? | | ?????????# #???????????????????????????????????? | | ?????????# ##??????????????????????????????????? | | ??????#### ##??????????????????????????????????? | | ?????## ##??????????????????????????????????? | | ?????# ######??????????????????????????????? | | ###### #?#????????????????????????????? | | # #?# ???????????????????????????? | | # ##### ###+########???????????????????? | | # ??### # ## #???????????????????? | | # ### ## ## g #???????????????????? | | # "" # # # """ """ #???????????????????? | | # T" # # """ """ #???????????????????? | | + "" # ## + """g""" #???????????????????? | | # # ## # g #???????????????????? | | # # ## # #???????????????????? | | ## !# ### ## g@%g #???????????????????? | | ## !# #?# ########+###???????????????????? | | + # #?# #??????# #?????????????????????? | | ## # #?# #??????# #?????????????????????? | | ## # #?# #??????# #?????????????????????? | | ## # #?#####??????# #?????????????????????? | | ######## ############## #?????????????????????? | | #?????????????????????? | | ########################?????????????????????? | | #????????????????????????????????????????????? | | !#????????????????????????????????????????????? | | !!!##????????????????????????????????????????????? | | ####?????????????????????????????????????????????? | | ?????????????????????????????????????????????????? | | | | | | | | | | | | | | | | | | | | | | | +----------------------------------------------------+ Best States ------------- Heat Dissipation 28 Energy Generation 15 Energy Capacity 250 Matter Stores 350 Matter Capacity 350 Sight Range 16 Terrain Scan Density 10 Armor Coverage 150 Evasion (%) 62 Item Schematics ----------------- None Robot Schematics ------------------ None Fabricated ------------ Nothing Alien Tech Used ----------------- None Achievements -------------- Let's See Who's Tougher One Hack Too Far Part-time Mechanic Challenges ------------ None Game ------ Seed MultitargetingGlidesysHammer Manual? 0 Play Time 00:21:16 Cumulative 1.1 hours Start 2024.04.08 @ 16:50:40 End 2024.04.08 @ 17:09:40 Sessions 1 Manual Loads 0 Difficulty Rogue Special Mode None Game No. 3 Rogue 3 Adventurer 0 Explorer 0 Win Type - Total 0 Types 0/0/0/0/0/0/0/0/0 Lore% 0 Gallery% 2 Achievement% 2 Wizard Run 0 Options --------- Layout 1 ASCII 0 Keyboard 1 Movement Numpad Keybinds 0 Fullscreen 2 Font 24/Smallcaps Map View 50x35 Zoom Use 0% Tactical HUD 0 Map Filters NONE Filters NONE Steam 1 RUN: 77163755-4434-4bd5-a4f7-ed1cecb33881